bitfinex/quotes_BTCUSD_20250205
["timestamp","ask_amount","ask_price","bid_price","bid_amount"]
[1738798185691,0.20358699,96316.0,96315.0,0.00057461]
[1738798185892,0.20358699,96316.0,96315.0,0.04934177]
[1738798186205,0.14383868,96330.0,96316.0,0.155736]
[1738798186408,0.155723,96325.0,96316.0,0.155736]
[1738798186550,0.10574853,96329.0,96315.0,0.04934177]
[1738798186753,0.00324388,96324.0,96318.0,0.155733]
[1738798186959,0.00324388,96324.0,96316.0,0.207649]
[1738798186960,0.155723,96325.0,96316.0,0.155736]
[1738798187155,0.00324368,96323.0,96315.0,0.00057461]
[1738798187400,0.155737,96316.0,96315.0,0.00057461]
[1738798187817,0.15897928,96316.0,96315.0,0.00057461]
[1738798188191,0.00324228,96316.0,96315.0,0.00057461]
[1738798188576,0.155735,96318.0,96315.0,0.00057461]
[1738798188774,0.00324228,96316.0,96315.0,0.00057461]
[1738798188989,0.155736,96317.0,96315.0,0.00057461]
[1738798189218,0.00324228,96316.0,96315.0,0.00057461]
[1738798189433,0.10574593,96316.0,96315.0,0.00057461]
[1738798190237,0.00356888,96316.0,96315.0,0.00057461]
[1738798190401,0.10607253,96316.0,96315.0,0.00057461]
[1738798190608,0.11624627,96316.0,96315.0,0.00057461]
[1738798191711,0.26624627,96316.0,96315.0,0.00057461]
[1738798192072,0.42198327,96316.0,96315.0,0.00057461]
[1738798195044,0.11624627,96316.0,96315.0,0.00057461]
[1738798195255,0.11647098,96316.0,96315.0,0.00057461]
[1738798195405,0.27220798,96316.0,96315.0,0.00057461]
[1738798197023,0.00379359,96316.0,96315.0,0.00057461]
[1738798197222,0.00379359,96316.0,96315.0,0.15631261]
[1738798197448,0.00022471,96316.0,96315.0,0.15631261]
[1738798197653,0.00022471,96316.0,96315.0,0.15735075]
[1738798197810,0.00022471,96316.0,96315.0,0.00057461]
[1738798198452,0.15596171,96316.0,96315.0,0.00057461]
[1738798198652,0.15936877,96316.0,96315.0,0.00057461]
[1738798199622,0.00363177,96316.0,96315.0,0.00057461]
[1738798200370,0.00363177,96316.0,96315.0,0.01620687]
[1738798200594,0.00363177,96316.0,96315.0,0.00057461]
[1738798201011,0.15936877,96316.0,96315.0,0.00057461]
[1738798201441,0.26187242,96316.0,96315.0,0.00057461]
[1738798204005,0.00363177,96316.0,96315.0,0.27093979]
[1738798204288,0.2,96336.0,96335.0,0.155706]
[1738798204501,0.2,96336.0,96316.0,0.05267938]
[1738798204502,0.08303019,96335.0,96330.0,0.207618]
[1738798204716,0.2,96336.0,96333.0,0.155709]
[1738798204973,0.2,96336.0,96334.0,0.0321251]
[1738798205153,0.155695,96342.0,96335.0,0.02057176]
[1738798205291,0.207588,96345.0,96335.0,0.02057176]
[1738798205507,0.2,96352.0,96351.0,0.15568]
[1738798205745,0.2,96352.0,96351.0,0.18780835]
[1738798205990,0.01508888,96360.0,96359.0,0.155667]
[1738798206201,0.01508888,96360.0,96359.0,0.18779535]
[1738798206346,0.01508888,96360.0,96359.0,0.03212835]
[1738798206550,0.155676,96354.0,96339.0,0.2076]
[1738798206778,0.155673,96356.0,96344.0,0.155692]
[1738798206969,0.25817765,96355.0,96344.0,0.155692]
[1738798207176,0.10250365,96355.0,96345.0,0.0321353]
[1738798207445,0.01508888,96360.0,96340.0,0.03383]
[1738798207446,0.01508888,96360.0,96346.0,0.06052913]
[1738798207665,0.155671,96357.0,96346.0,0.0321353]
[1738798207885,0.10250365,96356.0,96347.0,0.0321353]
[1738798208144,0.10250365,96356.0,96346.0,0.155688]
[1738798208145,0.25817665,96356.0,96346.0,0.155688]
[1738798208318,0.25817665,96356.0,96347.0,0.0321353]
[1738798208559,0.10250365,96356.0,96347.0,0.0321353]
[1738798208731,0.155685,96348.0,96347.0,0.0321353]
[1738798208886,0.155685,96348.0,96338.0,0.00046781]
[1738798208887,0.1557,96340.0,96338.0,0.00046781]
[1738798209088,0.10250365,96339.0,96338.0,0.00046781]
[1738798211464,0.34389384,96339.0,96338.0,0.00046781]
[1738798211660,0.43361978,96339.0,96338.0,0.00046781]
[1738798212115,0.63361978,96339.0,96338.0,0.00046781]
[1738798212321,0.71171978,96339.0,96338.0,0.00046781]
[1738798213103,0.64943978,96339.0,96338.0,0.00046781]
[1738798213525,0.305737,96316.0,96291.0,0.0002]
[1738798213822,0.40824065,96316.0,96315.0,0.0002468]
[1738798216112,0.60824065,96316.0,96315.0,0.0002468]
[1738798216759,0.63124065,96316.0,96315.0,0.0002468]
[1738798217204,0.64151226,96316.0,96315.0,0.0002468]
[1738798217608,0.74745284,96316.0,96315.0,0.0002468]
[1738798218195,0.64494919,96316.0,96315.0,0.0002468]
[1738798223156,0.70722919,96316.0,96315.0,0.0002468]
[1738798229250,0.70722919,96316.0,96315.0,1e-08]
[1738798229705,0.70722919,96316.0,96291.0,0.0002]
[1738798229706,0.305776,96292.0,96291.0,0.0002]
[1738798229912,0.41663965,96292.0,96291.0,0.0002]
[1738798230030,0.41984678,96292.0,96291.0,0.0002]
[1738798231016,0.61984678,96292.0,96291.0,0.0002]
[1738798231994,0.63049347,96292.0,96291.0,0.0002]
[1738798233976,0.62213347,96292.0,96291.0,0.0002]
[1738798234203,0.63049347,96292.0,96291.0,0.0002]
[1738798235127,0.43049347,96292.0,96291.0,0.0002]
[1738798238096,0.69277347,96292.0,96291.0,0.0002]
[1738798241207,0.73740077,96292.0,96291.0,0.0002]
[1738798241506,0.69277347,96292.0,96291.0,0.0002]
[1738798242427,0.68441347,96292.0,96291.0,0.0002]
[1738798242654,0.69277347,96292.0,96291.0,0.0002]
[1738798243043,0.69277347,96292.0,96291.0,0.000307]
[1738798244928,0.71577347,96292.0,96291.0,0.000307]
[1738798245105,0.81827712,96292.0,96291.0,0.000307]
[1738798245663,0.86607712,96292.0,96291.0,0.000307]
[1738798248467,0.76357347,96292.0,96291.0,0.000307]
[1738798249129,0.69277347,96292.0,96291.0,0.000307]
[1738798251155,0.69277347,96292.0,96291.0,0.03267552]
[1738798251514,0.69277347,96292.0,96291.0,0.000307]
[1738798252130,0.69277347,96292.0,96291.0,0.03267918]
[1738798253151,0.79527712,96292.0,96291.0,0.03267918]
[1738798253955,0.79527712,96292.0,96291.0,0.000307]
[1738798254155,0.78691712,96292.0,96291.0,0.000307]
[1738798254370,0.69277347,96292.0,96291.0,0.000307]
[1738798256216,0.69277347,96292.0,96291.0,0.03268812]
[1738798256558,0.62213347,96292.0,96291.0,0.03268812]
[1738798256764,0.47213347,96292.0,96291.0,0.03268812]
[1738798256963,0.44617623,96292.0,96291.0,0.03268812]
[1738798257815,0.44617623,96292.0,96291.0,0.04848693]
[1738798258143,0.30845623,96292.0,96291.0,0.04848693]
[1738798258933,0.30845623,96292.0,96291.0,0.03268812]
[1738798259090,0.50845623,96292.0,96291.0,0.03268812]
[1738798261326,0.21385382,96292.0,96291.0,0.03268812]
[1738798261527,0.20320713,96292.0,96291.0,0.03268812]
[1738798261835,0.12534619,96292.0,96291.0,0.03268812]
[1738798262093,0.00365922,96292.0,96291.0,0.08483633]
[1738798262307,0.00365922,96292.0,96291.0,0.18846512]
[1738798262488,0.08303019,96301.0,96294.0,0.0791]
[1738798262662,0.207686,96299.0,96295.0,0.03238112]
[1738798262867,0.207686,96299.0,96291.0,0.000307]
[1738798262868,0.155769,96297.0,96296.0,0.03238112]
[1738798263077,0.25827265,96297.0,96296.0,0.03238112]
[1738798263251,0.41340136,96297.0,96296.0,0.03238112]
[1738798263435,0.155776,96292.0,96291.0,0.000307]
[1738798263642,0.25827965,96292.0,96291.0,0.000307]
[1738798263837,0.26194185,96292.0,96291.0,0.000307]
[1738798264246,0.48096767,96292.0,96291.0,0.000307]
[1738798264471,0.41194185,96292.0,96291.0,0.000307]
[1738798265096,0.41340673,96292.0,96291.0,0.000307]
[1738798266066,0.41340673,96292.0,96291.0,1e-08]
[1738798266067,0.50929987,96292.0,96291.0,1e-08]
[1738798266929,0.50952478,96292.0,96291.0,1e-08]
[1738798267496,0.305797,96279.0,96263.0,0.0791]
[1738798267698,0.41666065,96279.0,96263.0,0.0791]
[1738798267899,0.42177456,96279.0,96263.0,0.0791]
[1738798268821,0.42189502,96279.0,96263.0,0.0791]
[1738798269190,0.26353502,96279.0,96265.0,0.155819]
[1738798269391,0.26353502,96279.0,96268.0,0.207751]
[1738798269392,0.00523437,96279.0,96268.0,0.207751]
[1738798269632,0.00523437,96279.0,96278.0,0.1041726]
[1738798269837,0.00377063,96279.0,96278.0,0.1041726]
[1738798270012,0.00012046,96279.0,96278.0,0.1041726]
[1738798270352,0.00012046,96279.0,96278.0,0.136551]
[1738798270353,0.00377094,96279.0,96278.0,0.136551]
[1738798270552,0.10688422,96279.0,96278.0,0.136551]
[1738798271515,0.10688422,96279.0,96278.0,0.057451]
[1738798278168,0.26268122,96279.0,96278.0,0.057451]
[1738798278490,0.26268122,96279.0,96278.0,0.0575579]
[1738798278727,0.00438057,96279.0,96278.0,0.0575579]
[1738798278923,0.00012046,96279.0,96278.0,0.1372579]
[1738798279123,0.00377212,96279.0,96278.0,0.1372579]
[1738798279862,0.00377212,96279.0,96278.0,0.16656439]
[1738798280065,0.00377212,96279.0,96278.0,0.1372579]
[1738798280668,0.00012046,96279.0,96278.0,0.1372579]
[1738798280850,0.00377243,96279.0,96278.0,0.1372579]
[1738798281067,0.00012046,96279.0,96278.0,0.1372579]
[1738798281276,0.00377284,96279.0,96278.0,0.1372579]
[1738798281472,0.00012046,96279.0,96278.0,0.1372579]
[1738798281891,0.00377284,96279.0,96278.0,0.1372579]
[1738798282066,0.00012046,96279.0,96278.0,0.34324065]
[1738798282266,0.00377284,96279.0,96278.0,0.39254065]
[1738798282520,0.15,96297.0,96278.0,0.23674265]
[1738798282733,0.10250365,96291.0,96279.0,0.0323784]
[1738798282887,0.155783,96288.0,96280.0,0.0323784]
[1738798283084,0.155783,96288.0,96281.0,0.0323784]
[1738798283426,0.155783,96288.0,96278.0,0.1541795]
[1738798283427,0.00593947,96287.0,96282.0,0.0323784]
[1738798283630,0.16172447,96287.0,96283.0,0.0323784]
[1738798283875,0.00593947,96287.0,96283.0,0.0323784]
[1738798284036,0.00593947,96287.0,96284.0,0.0323784]
[1738798284239,0.155782,96289.0,96285.0,0.0323784]
[1738798284436,0.10250365,96291.0,96286.0,0.0323784]
[1738798284636,0.155782,96288.0,96287.0,0.0323784]
[1738798285076,0.25828565,96288.0,96287.0,0.0323784]
[1738798287589,0.47056565,96288.0,96287.0,0.0323784]
[1738798287763,0.47056565,96288.0,96278.0,0.0251795]
[1738798287764,0.305797,96279.0,96278.0,0.0251795]
[1738798287966,0.40830065,96279.0,96278.0,0.05755865]
[1738798288504,0.40830065,96279.0,96278.0,0.0251795]
[1738798289114,0.6536843,96279.0,96278.0,0.0251795]
[1738798290012,0.65961938,96279.0,96278.0,0.0251795]
[1738798291333,0.66990737,96279.0,96278.0,0.0251795]
[1738798291486,0.56740372,96279.0,96278.0,0.0251795]
[1738798291899,0.48680372,96279.0,96278.0,0.0251795]
[1738798292529,0.28288372,96279.0,96278.0,0.0251795]
[1738798293002,0.34516372,96279.0,96278.0,0.0251795]
[1738798293215,0.49516372,96279.0,96278.0,0.0251795]
[1738798293582,0.56084648,96279.0,96278.0,0.0251795]
[1738798294329,0.49516372,96279.0,96278.0,0.0251795]
[1738798301211,0.49711996,96279.0,96278.0,0.0251795]
[1738798301969,0.06228,96277.0,96251.0,0.00123877]
[1738798302116,0.2292,96278.0,96251.0,0.00032046]
[1738798302117,0.36812,96252.0,96251.0,0.00032046]
[1738798302319,0.57510602,96252.0,96251.0,0.00032046]
[1738798302518,0.60400958,96252.0,96251.0,0.00032046]
[1738798302721,0.60400958,96252.0,96220.0,0.0783]
[1738798302722,0.60400958,96252.0,96204.0,0.00953767]
[1738798302723,0.155917,96205.0,96204.0,0.00953767]
[1738798303069,0.00782183,96205.0,96204.0,0.04189392]
[1738798303259,0.00782183,96205.0,96204.0,0.03235625]
[1738798303466,0.01047393,96214.0,96204.0,0.0333956]
[1738798303668,0.25842065,96205.0,96204.0,0.03235625]
[1738798303878,0.10250365,96205.0,96204.0,0.04201713]
[1738798304168,0.26441697,96205.0,96204.0,0.04201713]
[1738798304373,0.26441697,96205.0,96204.0,0.00969404]
[1738798305578,0.10849997,96205.0,96200.0,0.15804]
[1738798305771,0.10250365,96204.0,96200.0,0.15804]
[1738798305942,0.00014016,96205.0,96203.0,0.15592]
[1738798306145,0.00014016,96205.0,96204.0,0.00103928]
[1738798306343,0.10264381,96205.0,96200.0,0.15804]
[1738798306543,0.10250365,96204.0,96200.0,0.15804]
[1738798308537,0.00014016,96205.0,96200.0,0.15804]
[1738798308735,0.00014016,96205.0,96203.0,0.00103935]
[1738798309297,0.00014016,96205.0,96203.0,0.01070167]
[1738798309705,0.00014016,96205.0,96203.0,0.00966232]
[1738798311013,0.10250365,96204.0,96203.0,0.00966232]
[1738798311218,0.1102607,96204.0,96203.0,0.00966232]
[1738798311543,0.17846949,96204.0,96203.0,0.00966232]
[1738798312000,0.1102607,96204.0,96203.0,0.00966232]
[1738798312758,0.18336564,96204.0,96203.0,0.00966232]
[1738798312962,0.18142638,96204.0,96203.0,0.00966232]
[1738798313223,0.1803872,96204.0,96203.0,0.00966232]
[1738798313628,0.15592,96203.0,96200.0,0.15804]
[1738798313835,0.3382971,96203.0,96200.0,0.15804]
[1738798314125,0.26307546,96203.0,96200.0,0.15804]
[1738798314544,0.10715546,96203.0,96200.0,0.15804]
[1738798314738,0.26307546,96203.0,96200.0,0.15804]
[1738798316744,0.26307546,96203.0,96202.0,0.0154499]
[1738798316981,0.33097392,96203.0,96202.0,0.0154499]
[1738798317211,0.24232733,96203.0,96202.0,0.0154499]
[1738798317690,0.25276135,96203.0,96202.0,0.0154499]
[1738798317935,0.00523328,96203.0,96202.0,0.0154499]
[1738798318254,0.00036487,96205.0,96202.0,0.0154499]
[1738798318451,0.10286852,96205.0,96202.0,0.0154499]
[1738798318697,0.10286852,96205.0,96202.0,0.04335116]
[1738798318896,0.10286852,96205.0,96202.0,0.1713709]
[1738798318897,0.00523383,96204.0,96202.0,0.1713709]
[1738798319096,0.00523383,96204.0,96203.0,0.00103936]
[1738798319299,0.00036487,96205.0,96203.0,0.03216193]
[1738798319518,0.00036487,96205.0,96204.0,0.03216193]
[1738798320618,0.00559926,96205.0,96204.0,0.03216193]
[1738798320830,0.10810291,96205.0,96204.0,0.03216193]
[1738798321023,0.16085317,96205.0,96204.0,0.03216193]
[1738798321322,0.16085317,96205.0,96203.0,0.00965603]
[1738798321323,0.155918,96204.0,96203.0,0.00965603]
[1738798321523,0.25842165,96204.0,96203.0,0.00965603]
[1738798321689,0.26365548,96204.0,96202.0,0.0154499]
[1738798321893,0.10250365,96203.0,96202.0,0.0154499]
[1738798322289,0.10773693,96203.0,96202.0,0.0154499]
[1738798322690,0.12672358,96203.0,96202.0,0.0154499]
[1738798322930,0.18900358,96203.0,96202.0,0.04763791]
[1738798323512,0.31284891,96203.0,96202.0,0.04763791]
[1738798323714,0.31284891,96203.0,96202.0,0.0154499]
[1738798323715,0.31180973,96203.0,96202.0,0.0154499]
[1738798324131,0.46840358,96203.0,96202.0,0.0154499]
[1738798324813,0.33900358,96203.0,96202.0,0.0154499]
[1738798325053,0.34752358,96203.0,96202.0,0.0154499]
[1738798325313,0.33900358,96203.0,96202.0,0.0154499]
[1738798325481,0.34748358,96203.0,96202.0,0.0154499]
[1738798325885,0.36939876,96203.0,96202.0,0.0154499]
[1738798326046,0.37787876,96203.0,96202.0,0.0154499]
[1738798326448,0.37787876,96203.0,96202.0,0.04764266]
[1738798326651,0.46156034,96203.0,96202.0,0.04764266]
[1738798328028,0.48456034,96203.0,96202.0,0.04764266]
[1738798328331,0.328921,96202.0,96201.0,0.00407415]
[1738798328507,0.43142465,96202.0,96201.0,0.03627783]
[1738798328708,0.43663912,96202.0,96201.0,0.00407415]
[1738798328880,0.53914277,96202.0,96201.0,0.00407415]
[1738798329293,0.57451912,96202.0,96201.0,0.03628793]
[1738798329799,0.57451912,96202.0,96201.0,0.00407415]
[1738798330181,0.48923912,96202.0,96201.0,0.00418115]
[1738798330388,0.41363912,96202.0,96201.0,0.03640174]
[1738798330932,0.47158095,96202.0,96201.0,0.03640174]
[1738798331354,0.47158095,96202.0,96201.0,0.00418115]
[1738798331570,0.47158095,96202.0,96201.0,0.03641158]
[1738798331733,0.47158095,96202.0,96201.0,0.00418115]
[1738798332762,0.32158095,96202.0,96201.0,0.03642495]
[1738798335039,0.47155615,96202.0,96201.0,0.03642495]
[1738798335194,0.5689664,96202.0,96201.0,0.03642495]
[1738798336033,0.15,96201.0,96200.0,0.04828402]
[1738798336234,0.15,96201.0,96181.0,0.0001068]
[1738798336235,0.21228,96197.0,96181.0,0.0001068]
[1738798336446,0.40845265,96185.0,96181.0,0.0001068]
[1738798336588,0.40845265,96185.0,96184.0,0.03938275]
[1738798336816,0.53842934,96185.0,96184.0,0.03938275]
[1738798337035,0.53842934,96185.0,96184.0,0.0070449]
[1738798337745,0.58781117,96185.0,96184.0,0.0070449]
[1738798337941,0.75045769,96185.0,96184.0,0.03939012]
[1738798338372,0.65009117,96185.0,96184.0,0.03939012]
[1738798338728,0.68194775,96185.0,96184.0,0.03939012]
[1738798338973,0.65009117,96185.0,96184.0,0.03939012]
[1738798339183,0.66043405,96185.0,96184.0,0.03939012]
[1738798339581,0.73168063,96185.0,96184.0,0.03939012]
[1738798339788,0.8023277,96185.0,96184.0,0.03939012]
[1738798340310,0.73168063,96185.0,96184.0,0.03939012]
[1738798341143,0.63274405,96185.0,96184.0,0.03939012]
[1738798341361,0.33187405,96185.0,96184.0,0.03939012]
[1738798342143,0.32335405,96185.0,96184.0,0.03939012]
[1738798342350,0.32335405,96185.0,96184.0,0.03949712]
[1738798342728,0.32335405,96185.0,96184.0,0.04919699]
[1738798342729,0.03450622,96185.0,96184.0,0.04919699]
[1738798342908,0.02416334,96185.0,96184.0,0.04919699]
[1738798343114,0.01898665,96185.0,96184.0,0.04919699]
[1738798344370,0.00022471,96187.0,96184.0,0.04919699]
[1738798344628,0.207919,96191.0,96185.0,0.03234522]
[1738798344795,0.00451931,96186.0,96184.0,0.01685177]
[1738798344997,0.155941,96190.0,96185.0,0.03232666]
[1738798345196,0.155941,96190.0,96186.0,0.03232666]
[1738798345446,0.155941,96190.0,96187.0,0.03232666]
[1738798345560,0.155941,96190.0,96188.0,0.03232666]
[1738798345761,0.155941,96190.0,96186.0,0.00969987]
[1738798345762,0.155941,96190.0,96189.0,0.03232666]
[1738798345972,0.25844465,96190.0,96189.0,0.03232666]
[1738798346178,0.46782995,96190.0,96189.0,0.03232666]
[1738798346375,0.15,96180.0,96142.0,0.284725]
[1738798346576,0.15597,96172.0,96142.0,0.232717]
[1738798346834,0.15597,96172.0,96171.0,0.03254473]
[1738798346835,0.25951283,96172.0,96171.0,0.03254473]
[1738798347147,0.30522033,96172.0,96171.0,0.03254473]
[1738798347887,0.25861373,96172.0,96171.0,0.03254473]
[1738798348322,0.26717373,96172.0,96171.0,0.03254473]
[1738798348543,0.11120373,96172.0,96171.0,0.03254473]
[1738798349395,0.11116373,96172.0,96171.0,0.03254473]
[1738798349597,0.12172265,96172.0,96171.0,0.03254473]
[1738798349795,0.00866008,96172.0,96171.0,0.03254473]
[1738798350013,0.00014008,96172.0,96171.0,0.03254473]
[1738798351462,0.10659449,96172.0,96171.0,0.03254473]
[1738798354683,0.10763367,96172.0,96171.0,0.03254473]
[1738798355575,0.10763367,96172.0,96171.0,0.03265173]
[1738798355776,0.10659449,96172.0,96171.0,0.03265173]
[1738798356537,0.0320908,96172.0,96171.0,0.03265173]
[1738798357481,0.0034653,96172.0,96171.0,0.03265173]
[1738798358081,0.01019338,96179.0,96174.0,0.207955]
[1738798358259,0.00872,96188.0,96175.0,0.03234473]
[1738798358477,0.08303019,96189.0,96176.0,0.155962]
[1738798358798,0.00872,96188.0,96177.0,0.03234473]
[1738798358975,0.00872,96188.0,96178.0,0.05759611]
[1738798359140,0.00872,96188.0,96179.0,0.03234473]
[1738798359371,0.01070125,96180.0,96179.0,0.03234473]
[1738798359574,0.00022471,96180.0,96179.0,0.03234473]
[1738798361100,0.00022471,96180.0,96179.0,0.03338431]
[1738798362102,0.00022471,96180.0,96179.0,0.13588796]
[1738798362313,0.00022471,96180.0,96179.0,0.21318796]
[1738798362486,0.00022471,96180.0,96179.0,0.21214838]
[1738798363032,0.00022471,96180.0,96179.0,0.10964473]
[1738798363244,0.00022471,96180.0,96179.0,0.11068417]
[1738798363444,0.00022471,96180.0,96179.0,0.11934449]
[1738798365411,0.00022471,96180.0,96179.0,0.04204449]
[1738798365615,0.00022471,96180.0,96179.0,0.03234473]
[1738798366486,0.00371882,96180.0,96179.0,0.03234473]
[1738798366690,0.00022471,96180.0,96179.0,0.03234473]
[1738798366928,0.00371882,96180.0,96179.0,0.03234473]
[1738798367129,0.00022471,96180.0,96179.0,0.03234473]
[1738798367345,0.00371882,96180.0,96179.0,0.03234473]
[1738798367547,0.25868536,96180.0,96179.0,0.03234473]
[1738798367752,0.26217947,96180.0,96179.0,0.03234473]
[1738798368954,0.27272556,96180.0,96179.0,0.03234473]
[1738798369540,0.01426491,96180.0,96179.0,0.03234473]
[1738798371244,0.00371882,96180.0,96179.0,0.03234473]
[1738798371440,0.00022471,96180.0,96179.0,0.03234473]
[1738798371664,0.00370895,96180.0,96179.0,0.03234473]
[1738798372872,0.14516562,96180.0,96179.0,0.03234473]
[1738798373094,0.14412644,96180.0,96179.0,0.03234473]
[1738798373612,0.1062126,96180.0,96179.0,0.03234473]
[1738798374154,0.00370895,96180.0,96179.0,0.03234473]
[1738798374979,0.1062126,96180.0,96179.0,0.03234473]
[1738798376924,0.155956,96181.0,96179.0,0.03234473]
[1738798377138,0.155956,96181.0,96180.0,0.03234473]
[1738798377910,0.155956,96181.0,96172.0,0.03234473]
[1738798378061,0.155956,96181.0,96173.0,0.03234473]
[1738798378268,0.155956,96181.0,96174.0,0.03234473]
[1738798378446,0.155959,96179.0,96175.0,0.03234473]
[1738798378661,0.155959,96179.0,96176.0,0.03234473]
[1738798378866,0.155959,96179.0,96177.0,0.03234473]
[1738798379090,0.155959,96179.0,96178.0,0.03234473]
[1738798379477,0.00022471,96180.0,96178.0,0.03234473]
[1738798379691,0.00022471,96180.0,96179.0,0.03234473]
[1738798380098,0.10376754,96180.0,96179.0,0.03234473]
[1738798380305,0.155968,96173.0,96172.0,0.000107]
[1738798380500,0.25847165,96173.0,96172.0,0.000107]
[1738798384637,0.26719165,96173.0,96172.0,0.000107]
[1738798386587,0.164688,96173.0,96172.0,0.000107]
[1738798386777,0.00872,96173.0,96172.0,0.000107]
[1738798387287,0.155967,96174.0,96172.0,0.000107]
[1738798387468,0.17984283,96173.0,96172.0,0.000107]
[1738798387677,0.10354283,96173.0,96172.0,0.000107]
[1738798390657,0.00103918,96173.0,96172.0,0.000107]
[1738798391041,0.155967,96174.0,96172.0,0.000107]
[1738798391177,0.155964,96176.0,96172.0,0.000107]
[1738798391372,0.20795,96177.0,96172.0,0.000107]
[1738798391699,0.155965,96175.0,96173.0,0.03234087]
[1738798391897,0.00022471,96180.0,96174.0,0.03234087]
[1738798392080,0.00022471,96180.0,96175.0,0.05129233]
[1738798392278,0.00022471,96180.0,96176.0,0.03234087]
[1738798392620,0.00022471,96180.0,96177.0,0.03234087]
[1738798392917,0.00022471,96180.0,96178.0,0.03234087]
[1738798393221,0.00022471,96180.0,96179.0,0.03234087]
[1738798395980,0.00022471,96180.0,96179.0,0.1506201]
[1738798396234,0.00022471,96180.0,96179.0,0.29902372]
[1738798396391,0.00022471,96180.0,96179.0,0.30798417]
[1738798396835,0.00022471,96205.0,96203.0,0.15592]
[1738798397054,0.00554828,96206.0,96203.0,0.03234087]
[1738798397277,0.01055133,96209.0,96204.0,0.03234087]
[1738798397593,0.15591,96209.0,96205.0,0.03234087]
[1738798397797,0.31142583,96208.0,96198.0,0.03234087]
[1738798397993,0.31142583,96208.0,96180.0,0.03338036]
[1738798397994,0.207891,96205.0,96180.0,0.03338036]
[1738798398156,0.155918,96205.0,96192.0,0.155938]
[1738798398333,0.0105855,96212.0,96193.0,0.03233461]
[1738798398534,0.10250365,96211.0,96194.0,0.03233461]
[1738798398792,0.0105855,96212.0,96195.0,0.03233461]
[1738798399098,0.155913,96208.0,96196.0,0.03233461]
[1738798399391,0.207876,96211.0,96197.0,0.05635947]
[1738798399606,0.0105855,96212.0,96198.0,0.03233461]
[1738798399607,0.155926,96199.0,96198.0,0.03233461]
[1738798399983,0.00103918,96199.0,96198.0,0.03233461]
[1738798400186,0.00103918,96199.0,96179.0,0.0775]
[1738798400384,0.24749823,96210.0,96180.0,0.0285451]
[1738798400385,0.00872,96205.0,96180.0,0.0285451]
[1738798400585,0.10250365,96204.0,96181.0,0.155955]
[1738798400751,0.155936,96193.0,96182.0,0.03337839]
[1738798400962,0.155936,96193.0,96183.0,0.03233883]
[1738798401223,0.00872,96205.0,96180.0,0.20898156]
[1738798401224,0.00872,96205.0,96184.0,0.03233883]
[1738798401461,0.155932,96196.0,96186.0,0.155947]
[1738798401638,0.155932,96196.0,96187.0,0.03233883]
[1738798401842,0.155932,96196.0,96188.0,0.03233883]
[1738798402019,0.155932,96196.0,96184.0,0.155949]
[1738798402020,0.11122365,96205.0,96189.0,0.03233883]
[1738798402204,0.207911,96195.0,96190.0,0.03233883]
[1738798402407,0.155933,96195.0,96178.0,0.03233883]
[1738798402602,0.155933,96195.0,96184.0,0.15595]
[1738798402801,0.155933,96195.0,96191.0,0.0096944]
[1738798403028,0.11122365,96205.0,96192.0,0.03233883]
[1738798403228,0.155935,96194.0,96192.0,0.03233883]
[1738798403430,0.10250365,96193.0,96192.0,0.03233883]
[1738798403627,0.10250365,96193.0,96191.0,0.0096944]
[1738798403628,0.155938,96192.0,96191.0,0.0096944]
[1738798403789,0.155951,96184.0,96183.0,0.000107]
[1738798404937,0.25845465,96184.0,96183.0,0.000107]
[1738798405350,0.3117913,96184.0,96183.0,0.000107]
[1738798406212,0.32232297,96184.0,96183.0,0.000107]
[1738798406910,0.26898632,96184.0,96183.0,0.000107]
[1738798410827,0.368248,96173.0,96169.0,0.00032561]
[1738798411007,0.47075165,96173.0,96169.0,0.00032561]
[1738798412308,0.47075165,96173.0,96172.0,0.00057413]
[1738798413097,0.25847165,96173.0,96172.0,0.00057413]
[1738798413316,0.26715165,96173.0,96172.0,0.00057413]
[1738798413599,0.34168542,96173.0,96172.0,0.00057413]
[1738798413736,0.26715165,96173.0,96172.0,0.00057413]
[1738798414903,0.27752769,96173.0,96172.0,0.00057413]
[1738798416153,0.33980769,96173.0,96172.0,0.00057413]
[1738798420720,0.48112769,96173.0,96172.0,0.00057413]
[1738798420920,0.56570769,96173.0,96172.0,0.00057413]
[1738798421120,0.66386906,96173.0,96172.0,0.00057413]
[1738798422705,0.56570769,96173.0,96172.0,0.00057413]
[1738798424267,0.48112769,96173.0,96172.0,0.00057413]
[1738798424468,0.48976769,96173.0,96172.0,0.00057413]
[1738798425088,0.48112769,96173.0,96172.0,0.00057413]
[1738798425298,0.48980769,96173.0,96172.0,0.00057413]
[1738798428364,0.41884769,96173.0,96172.0,0.00057413]
[1738798428662,0.16634404,96173.0,96172.0,0.00057413]
[1738798428819,0.01037604,96173.0,96172.0,0.00057413]
[1738798429018,0.155967,96174.0,96172.0,0.10897621]
[1738798429225,0.155967,96174.0,96172.0,0.07667413]
[1738798429444,0.155966,96175.0,96172.0,0.07667413]
[1738798429765,0.155968,96173.0,96172.0,0.00057413]
[1738798429963,0.25951083,96173.0,96172.0,0.00057413]
[1738798430125,0.25847165,96173.0,96172.0,0.00057413]
[1738798431574,0.155968,96173.0,96172.0,0.00057413]
[1738798434597,0.155968,96173.0,96172.0,0.03292777]
[1738798434795,0.155968,96173.0,96172.0,0.00057413]
[1738798435058,0.155968,96173.0,96172.0,0.0329277]
[1738798436131,0.01045442,96175.0,96172.0,0.0329277]
[1738798436329,0.155968,96174.0,96173.0,0.03235357]
[1738798437437,0.01045442,96175.0,96173.0,0.03235357]
[1738798437633,0.155967,96174.0,96172.0,0.00057413]
[1738798437955,0.155967,96174.0,96173.0,0.03239111]
[1738798438133,0.01045442,96175.0,96173.0,0.03239111]
[1738798438338,0.01045442,96175.0,96174.0,0.03239111]
[1738798442058,0.216526,96188.0,96174.0,0.24034611]
[1738798442375,0.155954,96182.0,96175.0,0.03239111]
[1738798442615,0.155961,96178.0,96176.0,0.03239111]
[1738798442829,0.155961,96178.0,96177.0,0.03239111]
[1738798443406,0.155961,96178.0,96177.0,0.04211317]
[1738798444706,0.155961,96178.0,96177.0,0.03239111]
[1738798445523,0.15596,96178.0,96177.0,0.03239111]
[1738798447347,0.12997271,96178.0,96177.0,0.03239111]
[1738798451908,0.12986893,96178.0,96177.0,0.03239111]
[1738798453111,0.12986893,96178.0,96177.0,0.05183656]
[1738798460602,0.12986893,96178.0,96177.0,0.03239111]
[1738798463625,0.12986893,96178.0,96177.0,0.03249801]
[1738798472342,0.21839579,96183.0,96177.0,0.03249801]
[1738798472343,0.00022471,96183.0,96179.0,0.155958]
[1738798472716,0.00022471,96183.0,96180.0,0.06027697]
[1738798473052,0.00022471,96183.0,96181.0,0.03239111]
[1738798473274,0.00022471,96183.0,96182.0,0.03239111]